bitfinex-derivatives/quotes_ETHF0:USTF0_20250309
["timestamp","ask_amount","ask_price","bid_price","bid_amount"]
[1741559473797,1.00032286,2014.6,2014.2,1.48979]
[1741559474088,4.20074,2014.4,2014.2,0.4968]
[1741559474289,0.00745286,2014.6,2014.2,0.4968]
[1741559474598,0.99293,2014.4,2014.2,0.4968]
[1741559474897,0.00745286,2014.6,2014.2,0.4968]
[1741559475690,3.2078,2014.5,2013.6,0.6674]
[1741559475889,3.2078,2013.9,2013.5,0.00745286]
[1741559476092,0.99331,2013.7,2013.5,0.00745286]
[1741559476294,0.99327,2013.7,2013.5,0.00745286]
[1741559476693,0.99325,2013.8,2013.5,1.00081286]
[1741559476893,0.99331,2013.7,2013.5,0.00745286]
[1741559477094,0.99332,2013.6,2013.5,0.00745286]
[1741559477295,3.2078,2013.6,2013.5,0.00745286]
[1741559477494,3.2078,2013.6,2013.5,1.00082286]
[1741559477795,3.2078,2014.2,2013.5,0.00745286]
[1741559478000,3.2078,2014.2,2013.5,3.21525286]
[1741559478199,0.609,2014.4,2013.5,6.16425286]
[1741559478503,3.2078,2014.5,2013.7,0.99327]
[1741559478504,4.20071,2014.5,2013.7,0.99327]
[1741559478703,3.2078,2014.5,2014.0,0.9931]
[1741559478897,0.99294,2014.4,2013.8,3.5924]
[1741559479094,3.2078,2014.5,2013.8,3.5924]
[1741559479604,0.99304,2014.2,2013.9,0.99316]
[1741559479800,3.2078,2014.4,2013.8,3.5924]
[1741559479999,3.2078,2014.1,2013.7,2.931]
[1741559480204,3.2078,2013.8,2013.5,2.95645286]
[1741559480503,3.2078,2013.8,2013.5,0.00745286]
[1741559480704,0.99355,2013.2,2012.9,0.99364]
[1741559480899,3.2078,2013.4,2012.7,0.4968]
[1741559481096,0.99354,2013.2,2012.7,0.4968]
[1741559481298,0.99357,2013.1,2012.8,0.99368]
[1741559481498,4.20137,2013.1,2012.8,0.99368]
[1741559481703,4.20137,2013.1,2012.7,0.4968]
[1741559481704,3.2078,2013.1,2012.6,9.5836]
[1741559481902,3.2078,2013.1,2012.7,0.00745286]
[1741559482201,0.99365,2013.0,2012.7,1.00120286]
[1741559482500,0.99372,2012.8,2012.7,0.00745286]
[1741559482715,0.99365,2013.0,2012.7,1.00121286]
[1741559483004,3.2078,2013.1,2012.7,1.00121286]
[1741559483005,3.2078,2013.1,2012.9,0.99364]
[1741559483199,3.2078,2013.1,2012.9,0.99363]
[1741559483399,3.2078,2013.1,2013.0,0.99362]
[1741559483703,3.2078,2013.8,2013.1,0.99357]
[1741559483915,3.2078,2013.8,2013.1,0.641]
[1741559484211,3.2078,2013.8,2013.6,0.9933]
[1741559484404,0.6423,2014.0,2013.5,3.2078]
[1741559484801,0.00745286,2014.0,2013.5,3.2078]
[1741559485208,0.00745286,2014.0,2013.8,0.99322]
[1741559485407,0.99319,2013.9,2013.6,0.99329]
[1741559485607,0.00745286,2014.0,2013.7,0.99327]
[1741559486111,0.00745286,2014.0,2013.8,0.99321]
[1741559486804,0.00745286,2014.0,2013.4,9.0798]
[1741559487009,0.00745286,2014.0,2013.9,0.99317]
[1741559487211,0.00745286,2014.0,2013.9,2.905]
[1741559488700,0.00745286,2014.0,2013.9,10.84717]
[1741559488907,3.2078,2014.5,2014.4,0.99293]
[1741559489503,3.2078,2014.5,2014.0,2.949]
[1741559489703,3.2078,2014.5,2014.3,0.99294]
[1741559489905,3.2078,2014.5,2014.1,2.889]
[1741559490405,3.2078,2014.5,2014.0,2.949]
[1741559490600,3.2078,2014.5,2013.7,0.00745286]
[1741559490601,0.99312,2014.0,2013.7,0.00745286]
[1741559490803,0.99322,2013.8,2013.7,0.00745286]
[1741559491003,3.2078,2013.9,2013.1,7.09132]
[1741559491209,3.2078,2013.6,2013.1,6.0978]
[1741559491514,3.2078,2013.6,2013.3,0.99343]
[1741559491707,3.2078,2013.6,2013.0,2.949]
[1741559492011,3.2078,2013.6,2013.2,4.20128]
[1741559492317,0.00745286,2013.5,2013.2,0.99348]
[1741559492706,0.00745286,2013.5,2013.3,0.99345]
[1741559492908,0.00745286,2013.5,2013.3,0.99347]
[1741559493109,0.00745286,2013.5,2013.1,2.89445286]
[1741559493312,0.00745286,2013.5,2013.2,0.99347]
[1741559493506,0.00745286,2013.5,2013.1,2.89445286]
[1741559493911,0.00745286,2013.5,2013.4,0.99342]
[1741559494316,0.00745286,2013.5,2013.3,0.99345]
[1741559494622,0.00745286,2013.5,2013.4,0.99342]
[1741559495520,0.00745286,2013.5,2013.4,0.6476]
[1741559495817,0.00745286,2013.5,2013.4,1.64102]
[1741559496414,0.00745286,2013.5,2013.2,3.7046]
[1741559496415,0.00745286,2013.5,2013.2,5.809]
[1741559496812,0.00745286,2013.5,2013.4,0.99342]
[1741559497620,0.00745286,2013.5,2013.2,9.0168]
[1741559497621,0.00745286,2013.5,2013.2,2.949]
[1741559498018,0.00745286,2013.5,2013.4,4.20122]
[1741559498216,3.8626,2014.4,2014.3,0.99298]
[1741559498518,3.8626,2014.4,2013.4,9.0148]
[1741559498519,3.2078,2014.4,2014.2,0.993]
[1741559498813,4.20077,2014.4,2014.1,2.862]
[1741559499013,3.2078,2014.4,2014.3,0.99298]
[1741559499317,3.2078,2014.4,2014.2,0.99299]
[1741559499518,3.2078,2014.4,2014.3,0.99298]
[1741559499820,0.00745286,2014.6,2014.3,0.99298]
[1741559499821,0.00745286,2014.6,2014.5,0.99288]
[1741559500019,0.00745286,2014.6,2014.5,2.861]
[1741559500214,1.00028286,2014.6,2014.5,2.861]
[1741559500620,0.99296,2014.4,2014.1,2.86545286]
[1741559500816,0.99296,2014.4,2014.1,3.85852286]
[1741559501021,4.20071,2014.5,2014.1,3.85852286]
[1741559501218,3.2078,2014.5,2014.1,2.86545286]
[1741559501423,4.20069,2014.5,2014.2,0.993]
[1741559501718,0.00745286,2014.6,2014.3,3.2078]
[1741559501922,0.00745286,2014.6,2014.5,0.99288]
[1741559502224,0.00745286,2014.6,2014.5,2.859]
[1741559502423,0.00745286,2014.6,2014.5,3.85188]
[1741559502625,0.00745286,2014.6,2014.5,2.859]
[1741559502826,0.00745286,2014.6,2014.5,3.85188]
[1741559503426,0.00745286,2014.6,2014.5,2.859]
[1741559503725,0.00745286,2014.6,2014.5,3.85188]
[1741559506228,0.00745286,2014.6,2014.5,2.859]
[1741559506429,0.00745286,2014.6,2014.5,0.99288]
[1741559506630,0.00745286,2014.6,2014.4,0.6398]
[1741559506931,0.00745286,2014.6,2013.0,0.4968]
[1741559506932,3.2078,2014.2,2013.0,0.4968]
[1741559507119,0.99353,2013.2,2012.9,20.12892427]
[1741559507323,3.2078,2013.0,2012.9,19.13527427]
[1741559507521,4.20142,2013.0,2012.9,19.13527427]
[1741559507823,3.2078,2013.0,2012.9,20.12894427]
[1741559508226,0.00745286,2013.2,2012.9,19.13527427]
[1741559508426,0.00745286,2013.2,2013.0,0.99362]
[1741559508624,0.00745286,2013.2,2012.9,2.877]
[1741559508825,0.00745286,2013.2,2013.1,0.99357]
[1741559509030,0.00745286,2013.2,2013.0,0.99358]
[1741559509627,0.00745286,2013.2,2013.1,0.99357]
[1741559510221,2.86e-06,2013.2,2013.1,0.99357]
[1741559510422,2.86e-06,2013.2,2012.7,0.50425286]
[1741559510628,4.20148,2012.9,2012.7,0.00745286]
[1741559510925,3.2078,2012.9,2012.8,0.99372]
[1741559511230,3.20780286,2013.2,2012.7,0.00745286]
[1741559511421,0.99372,2012.8,2012.7,0.00745286]
[1741559511926,3.2078,2012.9,2012.7,0.00745286]
[1741559512231,4.20149,2012.9,2012.7,0.00745286]
[1741559512424,3.2078,2012.9,2012.7,1.00119286]
[1741559512631,3.2078,2012.9,2012.8,0.99372]
[1741559512930,3.2078,2012.9,2012.7,0.00745286]
[1741559513428,3.2078,2012.9,2012.7,1.00121286]
[1741559513631,3.2078,2012.9,2012.7,0.00745286]
[1741559514032,3.2078,2012.9,2012.7,1.00121286]
[1741559514226,3.2078,2012.9,2012.8,0.99372]
[1741559514928,4.20133286,2013.2,2012.9,0.99365]
[1741559515136,3.20780286,2013.2,2012.7,2.87545286]
[1741559515334,3.20780286,2013.2,2013.1,0.99357]
[1741559515732,3.20780286,2013.2,2013.1,3.85557]
[1741559515938,3.20780286,2013.2,2013.1,4.35237]
[1741559516333,0.99358,2013.1,2012.9,0.4968]
[1741559516533,3.20780286,2013.2,2012.7,0.00745286]
[1741559516833,3.2078,2012.8,2012.7,2.86945286]
[1741559517034,4.20152,2012.8,2012.7,2.86945286]
[1741559517239,4.20152,2012.8,2012.7,0.00745286]
[1741559517642,0.99412,2012.0,2011.8,2.872]
[1741559517835,3.2078,2011.9,2011.8,2.872]
[1741559518335,3.2078,2012.2,2011.8,2.872]
[1741559518639,3.2078,2011.9,2011.7,2.868]
[1741559518837,3.2078,2011.9,2011.8,1.00166286]
[1741559519037,3.21525286,2012.2,2011.8,1.00166286]
[1741559519335,3.21525286,2012.2,2012.1,0.99406]
[1741559519735,0.00745286,2012.2,2012.1,3.86006]
[1741559520135,2.86e-06,2012.2,2012.1,7.86006]
[1741559520335,2.86e-06,2012.2,2012.1,3.86006]
[1741559520642,4.20181286,2012.2,2012.1,2.866]
[1741559521441,3.20780286,2012.2,2012.0,2.864]
[1741559522134,3.20780286,2012.2,2012.1,0.99406]
[1741559522335,2.86e-06,2012.2,2012.1,0.99406]
[1741559523036,0.99403286,2012.2,2012.0,2.864]
[1741559523335,3.20780286,2012.2,2012.0,2.864]
[1741559523540,3.20780286,2012.2,2011.8,2.86745286]
[1741559523740,0.99404286,2012.2,2011.9,0.99414]
[1741559524038,3.2078,2012.1,2012.0,0.99411]
[1741559524236,2.86e-06,2012.2,2012.1,0.99406]
[1741559524635,12.80100286,2012.2,2010.8,0.4976]
[1741559524839,12.80100286,2012.2,2010.5,3.10148]
[1741559524840,3.2078,2011.0,2010.5,3.10148]
[1741559525136,3.2078,2011.0,2010.9,0.99465]
[1741559525343,4.20242,2011.0,2010.8,2.928]
[1741559525539,3.2078,2011.0,2010.8,2.928]
[1741559525740,0.99472,2010.8,2010.7,0.00745286]
[1741559525941,3.2078,2011.0,2010.7,0.00745286]
[1741559526141,0.9947,2010.8,2010.7,0.00745286]
[1741559526342,3.2078,2011.0,2010.7,0.00745286]
[1741559526343,0.99468,2010.9,2010.7,0.00745286]
[1741559526543,0.99468,2010.9,2010.8,0.04639683]
[1741559526737,0.99502,2010.2,2009.8,3.9292]
[1741559526934,3.2078,2009.9,2009.5,2.938]
[1741559527137,3.2078,2009.9,2009.5,3.4356]
[1741559527346,3.2078,2009.9,2009.7,0.99523]
[1741559527647,3.2078,2009.9,2009.8,1.01678139]
[1741559528346,7.14e-06,2010.0,2009.8,4.02158139]
[1741559528644,3.2078,2010.6,2009.9,6.15938139]
[1741559528848,2.948,2010.8,2010.4,0.99488]
[1741559529147,4.20249,2010.9,2010.4,0.99487]
[1741559529339,0.99471,2010.8,2010.3,2.931]
[1741559529539,3.2078,2010.6,2010.3,2.931]
[1741559529747,0.99485,2010.5,2010.4,0.02157367]
[1741559530044,0.99485,2010.5,2010.4,0.08784088]
[1741559530247,4.99485,2010.5,2010.4,0.08784088]
[1741559530546,0.99485,2010.5,2010.4,0.08784088]
[1741559530946,4.99485,2010.5,2010.4,0.08784088]
[1741559531148,4.99485,2010.5,2010.4,0.13417863]
[1741559531443,3.2078,2010.6,2010.4,0.13417863]
[1741559531748,4.20263,2010.6,2010.5,0.02157367]
[1741559532042,4.20263,2010.6,2010.5,0.13417863]
[1741559532243,8.20263,2010.6,2010.5,0.13417863]
[1741559532445,4.20263,2010.6,2010.5,0.13417863]
[1741559533041,14.13563,2010.6,2010.5,0.13417863]
[1741559533241,13.1408,2010.6,2009.8,6.1218]
[1741559533546,3.16146225,2010.2,2010.0,0.99509]
[1741559533741,3.16146225,2010.2,2010.0,0.9951]
[1741559534041,3.16146225,2010.2,2010.1,0.99505]
[1741559534551,3.16146225,2010.2,2010.1,1.04138775]
[1741559535347,3.2078,2010.5,2010.1,1.04138775]
[1741559535547,3.2078,2010.5,2010.2,0.995]
[1741559535849,3.2078,2010.5,2010.1,1.0876855]
[1741559536047,3.2078,2010.5,2010.1,0.0926755]
[1741559536239,3.15619724,2010.2,2010.1,0.04633775]
[1741559536742,4.15119724,2010.2,2010.1,0.04633775]
[1741559537047,13.08919724,2010.2,2009.6,0.00745286]
[1741559537348,13.08919724,2010.2,2009.0,0.4976]
[1741559537349,3.2078,2009.9,2009.0,0.4976]
[1741559537548,3.2078,2009.9,2009.3,3.2078]
[1741559537848,3.2078,2009.9,2009.4,2.916]
[1741559538441,3.21525286,2009.9,2009.7,0.99522]
[1741559538738,4.21040286,2009.9,2009.8,0.02681775]
[1741559538941,13.14825286,2009.9,2008.3,3.2078]
[1741559539143,0.99571,2008.8,2008.3,3.2078]
[1741559539349,3.2078,2008.9,2008.3,3.7062]
[1741559539544,3.2078,2008.9,2008.3,3.2078]
[1741559539751,0.99569,2008.8,2008.4,0.99586]
[1741559539952,0.99569,2008.8,2008.3,3.2078]
[1741559540142,7.16140152,2008.5,2007.4,3.2078]
[1741559540345,3.2078,2007.9,2007.1,3.29446083]
[1741559540546,3.2078,2008.2,2007.7,3.21525286]
[1741559540750,2.948,2008.1,2008.0,0.99609]
[1741559541046,0.00747198,2008.3,2008.2,0.99599]
[1741559541249,2.985,2008.8,2008.0,9.74433848]
[1741559541445,6.92855,2009.1,2008.6,0.99577]
[1741559541646,4.20333,2009.2,2008.7,0.99574]
[1741559541847,3.2078,2009.2,2009.1,0.99555]
[1741559542048,3.2078,2009.5,2009.3,0.99545]
[1741559542248,2.948,2009.7,2009.1,3.2078]
[1741559542454,0.00747198,2009.6,2009.5,0.99532]
[1741559542650,1.98e-06,2009.6,2009.5,4.20312]
[1741559543046,1.98e-06,2009.6,2009.5,4.24951848]
[1741559543446,1.98e-06,2009.6,2009.5,8.24951848]
[1741559543751,1.98e-06,2009.6,2009.5,1.04171848]
[1741559543950,1.98e-06,2009.6,2009.5,4.24951848]
[1741559544452,1.98e-06,2009.6,2009.5,0.04639848]
[1741559544748,2.94800198,2009.6,2008.6,3.2078]
[1741559544948,3.2078,2009.2,2009.0,0.99557]
[1741559545143,0.99535,2009.5,2008.7,0.4984]
[1741559545144,3.2078,2009.5,2008.7,0.4984]
[1741559545342,0.94898499,2009.1,2008.6,0.99577]
[1741559545548,9.1408,2009.5,2008.5,0.4984]
[1741559545943,1.98e-06,2009.6,2008.5,0.4984]
[1741559545944,1.98e-06,2009.6,2009.4,3.2078]
[1741559546152,1.98e-06,2009.6,2009.2,3.2078]
[1741559546452,4.11005624,2009.4,2009.0,3.067]
[1741559546647,3.11461624,2009.4,2008.8,3.21527198]
[1741559546844,0.99556,2009.1,2008.8,3.21527198]
[1741559547153,6.06261624,2009.4,2008.9,0.04659188]
[1741559547343,6.06261624,2009.4,2009.1,0.99553]
[1741559547542,6.06261624,2009.4,2009.2,0.09318376]
[1741559548247,7.05801624,2009.4,2009.3,0.13977564]
[1741559548453,3.11461624,2009.4,2009.3,0.13977564]
[1741559549349,0.99537,2009.5,2009.3,0.13977564]
[1741559549554,0.99538,2009.5,2009.3,0.13977564]
[1741559549757,7.1512,2009.4,2009.3,0.13977564]
[1741559549948,0.99564,2009.0,2008.8,0.00747198]
[1741559550162,3.2078,2009.0,2008.8,0.00747198]
[1741559550457,0.99564,2008.9,2008.8,0.00747198]
[1741559550650,4.20343,2009.0,2008.8,0.00747198]
[1741559550853,3.94364,2008.9,2008.8,0.00747198]
[1741559551050,6.5502,2008.9,2008.0,3.043]
[1741559551355,3.2078,2008.8,2008.2,3.2078]
[1741559551556,3.2078,2008.8,2008.5,0.04675976]
[1741559552257,3.94374,2008.7,2008.6,0.09354038]
[1741559552965,0.99582,2008.6,2008.4,0.00747198]
[1741559553262,3.2078,2008.8,2008.5,0.04678062]
[1741559553561,0.00747198,2008.9,2008.8,0.99569]
[1741559553761,0.00747198,2008.9,2008.8,4.06469]
[1741559553961,3.2078,2009.2,2009.0,0.99559]
[1741559554155,2.985,2009.4,2009.0,0.99556]
[1741559554365,3.2078,2009.5,2009.3,0.99542]
[1741559554564,0.6327,2009.7,2009.2,3.20734186]
[1741559554857,0.99543,2009.4,2009.2,0.14034186]
[1741559555053,3.2078,2009.6,2009.3,0.18712248]
[1741559555255,0.00747198,2009.5,2009.3,0.18712248]
[1741559555450,0.00747198,2009.5,2009.4,0.2339031]
[1741559556051,0.00747198,2009.5,2009.4,0.28068372]
[1741559556556,0.00747198,2009.5,2009.4,4.53066434]
[1741559556858,9.1408,2010.3,2009.4,8.03366434]
[1741559557059,3.2078,2010.3,2009.9,0.99515]
[1741559557362,3.2078,2010.3,2010.0,0.99507]
[1741559557553,3.2078,2010.6,2010.1,3.2078]
[1741559557750,0.99478,2010.7,2010.3,1.41597558]
[1741559558061,0.00747198,2010.6,2010.5,0.4678062]
[1741559558268,0.995,2010.2,2010.1,0.00747198]
[1741559558565,3.2078,2010.3,2009.6,6.2778]
[1741559558766,3.2078,2010.3,2009.9,0.04678062]
[1741559559156,4.2029,2010.0,2009.9,0.04678062]
[1741559559560,2.948,2010.2,2009.9,1.04190062]
[1741559559860,2.985,2010.5,2010.0,0.04678062]
[1741559560064,3.2078,2010.3,2010.0,0.04678062]
[1741559560265,6.81477198,2010.6,2010.0,0.04678062]
[1741559560462,2.99247198,2010.6,2010.4,0.99489]
[1741559560767,0.00747198,2010.6,2010.5,1.04163062]
[1741559561061,0.00747198,2010.6,2010.5,0.04678062]
[1741559561453,0.00747198,2010.6,2010.5,1.04163062]
[1741559561660,3.2078,2011.2,2010.5,7.75218062]
[1741559561858,3.2078,2011.2,2010.8,0.04678062]
[1741559562059,0.99458,2011.1,2010.8,0.04678062]
[1741559562259,3.2078,2011.2,2010.8,0.04678062]
[1741559562260,0.99461,2011.0,2010.8,0.04678062]
[1741559562460,0.99464,2011.0,2010.8,0.04678062]
[1741559562659,3.2078,2011.2,2010.8,0.04678062]
[1741559562856,0.00747198,2011.1,2011.0,0.04678062]
[1741559563269,1.00203198,2011.1,2011.0,0.04678062]
[1741559564069,9.94047198,2011.1,2010.3,3.056]
[1741559564270,3.2078,2010.6,2010.3,4.05094]
[1741559564569,4.20262,2010.6,2010.3,4.05094]
[1741559564772,3.2078,2010.6,2010.5,0.99485]
[1741559564965,3.2078,2010.6,2010.3,3.056]
[1741559564966,2.948,2010.9,2010.7,0.99475]
[1741559565172,2.948,2010.9,2010.6,0.99478]
[1741559565362,2.948,2010.9,2010.6,1.00225198]
[1741559565972,2.948,2010.9,2010.6,0.00747198]
[1741559566372,2.948,2010.9,2010.7,0.9947]
[1741559566564,2.948,2010.9,2010.6,0.00747198]
[1741559566768,2.948,2010.9,2010.8,0.9947]
[1741559566964,3.2078,2011.0,2010.7,0.99471]
[1741559567164,3.2078,2011.0,2010.6,0.00747198]
[1741559567375,0.00747198,2011.1,2011.0,0.9946]
[1741559567871,3.2078,2011.6,2011.0,4.0]
[1741559568077,2.985,2012.2,2011.7,0.99424]
[1741559568369,3.2078,2012.0,2011.1,3.038]
[1741559568576,0.99447,2011.3,2011.1,3.038]
[1741559568770,0.99445,2011.4,2011.1,3.038]
[1741559568967,3.2078,2011.5,2011.1,3.038]
[1741559569273,3.21527198,2011.5,2011.1,3.038]
[1741559569470,0.99441,2011.4,2011.1,3.038]
[1741559569668,0.99441,2011.4,2011.1,4.03255]
[1741559569974,0.99456,2011.1,2011.0,0.00747198]
[1741559570466,4.20236,2011.1,2011.0,0.00747198]
[1741559570872,0.99474,2010.8,2010.4,6.7374]
[1741559571173,0.99475,2010.8,2010.5,0.99481]
[1741559571375,3.5545,2011.0,2010.5,0.99485]
[1741559571576,3.5545,2011.0,2010.5,2.48705]
[1741559571876,2.948,2011.0,2010.8,0.99469]
[1741559572376,2.948,2011.0,2010.8,0.9947]
[1741559572874,3.2078,2011.1,2011.0,0.9946]
[1741559573073,4.20232,2011.2,2010.9,0.99464]
[1741559573474,3.2078,2011.2,2011.0,0.9946]
[1741559573669,3.85427198,2011.5,2011.0,3.2078]
[1741559573876,0.00747198,2011.5,2011.4,0.99441]
[1741559574176,0.00747198,2011.5,2011.1,3.2078]
[1741559574373,0.00747198,2011.5,2011.4,4.20221]
[1741559574374,1.98e-06,2011.5,2011.4,4.20221]
[1741559574575,1.98e-06,2011.5,2011.4,11.22021]
[1741559574784,1.98e-06,2011.5,2011.4,16.53466286]
[1741559575779,1.98e-06,2011.5,2011.4,22.97279759]
[1741559575976,1.98e-06,2011.5,2011.4,23.47039759]
[1741559576875,3.2078,2012.5,2011.6,2.48572]
[1741559577174,3.2078,2012.5,2011.9,3.2078]
[1741559577375,0.99397,2012.3,2011.9,7.21693]
[1741559577567,0.99397,2012.3,2012.0,0.99411]
[1741559577766,5.69248,2012.5,2011.9,3.2078]
[1741559577973,0.99411,2012.0,2011.9,0.00747198]
[1741559578573,0.99411,2012.0,2011.4,0.4976]
[1741559578574,0.99436,2011.5,2011.4,0.4976]
[1741559578779,3.2078,2011.5,2011.0,0.4976]
[1741559578979,0.99445,2011.4,2011.0,1.49217]
[1741559579179,0.99442,2011.4,2011.1,0.99455]
[1741559579477,3.2078,2011.5,2011.0,2.48652]
[1741559579672,0.00747198,2011.5,2011.3,3.2078]
[1741559579872,0.00747198,2011.5,2011.4,0.99441]
[1741559580074,3.2078,2012.4,2011.4,2.949]
[1741559580277,2.985,2012.8,2012.1,3.2078]
[1741559580568,0.99391,2012.4,2012.1,7.23085]
[1741559580772,6.1928,2012.9,2012.1,6.2368]
[1741559580972,3.2078,2012.6,2011.8,3.033]
[1741559581178,3.2078,2012.6,2012.3,0.00747198]
[1741559581479,0.00747198,2012.7,2012.3,3.05247198]
[1741559581680,0.00747198,2012.7,2012.5,0.99383]
[1741559581876,0.00747198,2012.7,2012.3,3.05247198]
[1741559582071,0.00747198,2012.7,2012.3,0.00747198]
[1741559582072,0.99391,2012.4,2012.3,0.00747198]
[1741559583177,0.9939,2012.5,2012.3,0.00747198]
[1741559583382,3.2078,2012.6,2012.3,0.00747198]
[1741559583873,0.99388,2012.5,2012.3,0.00747198]
[1741559584069,3.2078,2012.6,2012.3,0.00747198]
[1741559584483,0.00747198,2012.7,2012.3,0.00747198]
[1741559584684,0.99391,2012.4,2012.3,0.00747198]
[1741559586570,9.933,2012.4,2011.3,0.99444]
[1741559586776,3.2078,2011.6,2011.1,6.7464]
[1741559586978,0.99427,2011.7,2011.1,9.23274]
[1741559587281,0.99434,2011.6,2011.4,0.99439]
[1741559587580,3.2078,2011.7,2011.1,6.7464]
[1741559587875,7.79,2013.4,2011.1,6.7464]
[1741559587876,3.8139,2012.3,2011.6,3.2078]
[1741559588070,0.6061,2012.3,2011.6,6.2468]
[1741559588285,0.99418,2011.9,2011.6,6.2468]
[1741559588478,0.99403,2012.2,2011.6,6.2468]
[1741559588681,6.1558,2012.6,2011.6,6.2468]
[1741559588883,0.99423,2011.8,2011.6,6.2468]
[1741559589180,4.20924305,2012.3,2011.7,3.2078]
[1741559589483,0.00745305,2012.3,2011.7,3.2078]
[1741559589778,6.1558,2012.2,2011.8,3.2078]
[1741559589977,3.94203,2012.2,2011.8,4.20196]
[1741559590182,2.948,2012.2,2011.6,0.99428]
[1741559590484,0.99433,2011.6,2011.4,3.05]
[1741559590675,3.2078,2011.9,2011.4,3.05]
[1741559590875,0.99438,2011.5,2011.3,0.00745305]
[1741559591082,5.69325,2011.9,2011.3,0.00745305]
[1741559591283,0.99441,2011.4,2011.3,0.00745305]
[1741559591878,2.948,2011.8,2011.4,0.9944]
[1741559592080,2.948,2011.8,2011.3,0.00745305]
[1741559592285,0.9944,2011.5,2011.3,0.00745305]
[1741559592886,0.99441,2011.4,2011.3,0.00745305]
[1741559593881,6.948,2011.4,2010.4,0.6265]
[1741559594079,2.985,2011.5,2010.4,0.6265]
[1741559594080,3.2078,2010.9,2010.4,0.6265]
[1741559594275,4.20248,2010.9,2010.6,0.99479]
[1741559594482,0.9946,2011.1,2010.4,0.6265]
[1741559594683,0.99463,2011.0,2010.6,0.99476]
[1741559594979,0.9948,2010.6,2010.5,0.00745305]
[1741559595179,3.2078,2010.9,2010.5,0.00745305]
[1741559595386,0.99467,2010.9,2010.6,0.99479]
[1741559595586,0.9948,2010.6,2010.5,0.00745305]
[1741559599179,1.6578,2010.6,2010.5,0.00745305]
[1741559599378,0.663,2010.6,2010.5,0.00745305]
[1741559599585,1.6578,2010.6,2010.5,0.00745305]
[1741559602089,0.663,2010.6,2010.5,1.00230305]
[1741559602387,3.97974,2010.8,2010.5,1.00228305]
[1741559602584,0.9948,2010.6,2010.5,0.00745305]
[1741559603388,12.42007,2010.6,2009.7,0.4976]
[1741559603589,0.99507,2010.1,2009.8,0.99518]
[1741559603792,0.99512,2010.0,2009.7,1.49283]
[1741559604298,0.99519,2009.9,2009.5,3.5286]
[1741559604496,3.2078,2010.1,2009.6,0.00745305]
[1741559604689,0.99525,2009.7,2009.6,0.00745305]
[1741559604888,0.99524,2009.8,2009.6,0.00745305]
[1741559605090,0.99525,2009.7,2009.6,0.00745305]
[1741559605597,0.00745305,2009.9,2009.7,0.99522]
[1741559605791,0.00745305,2009.9,2009.8,0.9952]
[1741559605997,0.00745305,2009.9,2009.6,0.00745305]
[1741559606200,0.00745305,2009.9,2009.8,0.9952]
[1741559606493,0.00745305,2009.9,2009.6,0.00745305]
[1741559606691,0.00745305,2009.9,2009.8,0.9952]
[1741559607087,0.00745305,2009.9,2009.6,0.00745305]
[1741559607297,0.00745305,2009.9,2009.8,0.9952]
[1741559608094,0.00745305,2009.9,2009.6,0.00745305]
[1741559608296,0.00745305,2009.9,2009.7,0.99522]
[1741559608504,0.00745305,2009.9,2009.6,0.00745305]
[1741559608695,0.99523,2009.8,2009.6,0.00745305]
[1741559609097,0.99525,2009.7,2009.6,0.00745305]
[1741559609302,3.21525305,2009.9,2008.9,1.7793]
[1741559609600,3.2078,2009.6,2009.1,6.2048]
[1741559609799,3.2078,2009.6,2009.5,0.99535]
[1741559610200,3.21525305,2009.9,2009.1,8.69358]
[1741559610392,0.99523,2009.8,2009.3,0.00745305]
[1741559610692,0.99523,2009.8,2009.6,0.99528]
[1741559610693,5.933,2009.8,2009.6,0.99528]
[1741559610893,5.933,2009.8,2009.5,0.99533]
[1741559611092,0.9954,2009.4,2009.3,0.00745305]
[1741559611496,0.99562,2009.0,2008.7,0.99573]
[1741559611901,0.99567,2008.9,2008.6,4.70197]
[1741559612101,0.99567,2008.9,2008.6,4.20357]
[1741559612302,3.2078,2009.2,2008.5,3.5404]
[1741559612499,3.2078,2008.6,2008.0,0.4984]
[1741559612699,3.2078,2008.6,2007.7,3.039]
[1741559612900,3.2078,2007.9,2007.2,0.4984]
[1741559613103,0.99649,2007.2,2007.1,19.13527427]
[1741559613999,4.99649,2007.2,2007.1,9.47856653]
[1741559614305,4.99649,2007.2,2007.1,2.40251653]
[1741559614306,10.92949,2007.2,2007.1,2.40251653]
[1741559614903,10.92949,2007.2,2007.1,6.53e-06]
[1741559615103,5.933,2007.2,2007.1,6.53e-06]
[1741559615311,5.933,2007.2,2006.6,34.2287423]
[1741559615312,2.948,2007.3,2006.6,3.2078]
[1741559615505,0.99666,2006.9,2006.4,0.6241]
[1741559615697,0.99666,2006.9,2005.8,2.49284]
[1741559615698,3.2078,2006.7,2006.1,3.126]
[1741559616005,0.99696,2006.3,2005.8,1.61736]
[1741559616203,3.2078,2006.4,2006.0,3.2078]
[1741559616411,3.2078,2007.3,2007.2,0.99649]
[1741559616706,3.2078,2007.3,2006.1,14.21396596]
[1741559616898,3.2078,2007.0,2006.9,0.99664]
[1741559617102,2.948,2007.3,2006.9,3.2078]
[1741559617304,0.99644,2007.3,2006.8,0.99667]
[1741559617508,0.9965,2007.2,2006.7,0.99672]
[1741559617703,0.00747179,2007.5,2007.4,0.99639]
[1741559617905,3.2078,2008.3,2007.6,2.49069]
[1741559618108,3.2078,2008.3,2008.0,0.99609]
[1741559618404,2.948,2008.6,2008.0,0.99609]
[1741559618405,3.2078,2009.0,2008.1,2.49011]
[1741559618706,3.165,2009.7,2008.5,3.2078]
[1741559618707,3.2078,2009.3,2008.5,3.2078]
[1741559619005,13.1317425,2009.2,2008.6,6.3758]
[1741559619310,0.00747179,2009.1,2008.8,0.99567]
[1741559619516,0.00747179,2009.1,2008.7,3.17547179]
[1741559619808,0.00747179,2009.1,2009.0,4.20339]